bitfinex-derivatives/quotes_SOLF0:USTF0_20250905
["timestamp","ask_amount","ask_price","bid_price","bid_amount"]
[1757084618164,7.59,202.21,202.06,7.76]
[1757084618365,7.59,202.21,202.07,7.76]
[1757084618564,5.49360963,202.25,202.1,7.76]
[1757084618764,7.59,202.26,202.1,7.76]
[1757084619161,142.71179369,202.31,202.1,7.76]
[1757084619162,5.23179369,202.31,202.18,7.76]
[1757084619362,5.23179369,202.31,202.21,5.49360963]
[1757084619562,5.23179369,202.33,202.22,5.49360963]
[1757084619764,13.08360963,202.32,202.16,137.5]
[1757084620257,7.59,202.32,202.17,7.76]
[1757084621564,5.49360963,202.3,202.17,7.76]
[1757084621764,7.59,202.29,202.13,5.49360963]
[1757084622363,4.4507,202.21,202.12,145.36]
[1757084622664,7.69304794,202.37,202.12,5.49360963]
[1757084622862,5.49360963,202.28,202.17,7.76]
[1757084623062,7.59,202.27,202.17,7.76]
[1757084623360,7.59,202.27,202.12,92.26]
[1757084623662,7.59,202.24,202.11,7.76]
[1757084625270,7.59,202.21,202.06,7.76]
[1757084625462,7.59,202.18,202.06,7.76]
[1757084626671,13.08360963,202.18,202.06,7.76]
[1757084627871,5.49360963,202.17,202.06,7.76]
[1757084628371,5.49360963,202.17,202.04,109.58580257]
[1757084628565,10.44960963,202.17,202.04,109.58580257]
[1757084628766,5.49360963,202.13,202.01,7.97]
[1757084629065,5.49360963,202.1,202.01,7.97]
[1757084629469,5.49360963,202.14,202.01,7.97]
[1757084629966,69.2655,202.11,202.01,7.97]
[1757084630166,69.2728,202.09,202.01,7.97]
[1757084630571,77.3538,202.12,202.01,7.97]
[1757084632076,8.09,202.09,201.95,7.97]
[1757084632279,8.09,202.09,201.95,145.45]
[1757084632569,5.49360963,202.07,201.95,7.97]
[1757084632770,5.49360963,202.04,201.95,7.97]
[1757084633272,8.09,202.06,201.95,7.97]
[1757084634867,4.956,202.12,201.95,7.97]
[1757084634868,4.956,202.1,201.95,7.97]
[1757084635067,4.956,202.1,201.95,13.46360963]
[1757084635366,4.956,202.06,201.95,7.97]
[1757084635566,8.09,202.07,201.95,13.46360963]
[1757084635766,8.09,202.07,201.95,7.97]
[1757084636062,4.956,202.06,201.95,7.97]
[1757084636469,4.956,202.06,201.95,13.46360963]
[1757084636668,8.09,202.07,201.95,13.46360963]
[1757084636871,8.09,202.12,201.98,7.97]
[1757084637264,4.956,202.11,201.98,7.97]
[1757084637469,10.44960963,202.11,201.98,7.97]
[1757084637767,4.956,202.09,201.98,7.97]
[1757084637962,4.956,202.07,201.93,7.97]
[1757084638172,4.956,202.07,201.93,145.45]
[1757084638467,8.09,202.08,201.93,149.9065]
[1757084638776,4.956,202.07,201.94,13.46360963]
[1757084638973,10.44960963,202.07,201.94,7.97]
[1757084639172,4.4553,202.0,201.94,7.97]
[1757084639775,4.4547,202.03,201.94,7.97]
[1757084640272,8.09,202.08,201.94,13.46360963]
[1757084640469,8.09,202.08,201.95,7.97]
[1757084640671,8.09,202.08,201.98,5.49360963]
[1757084640872,8.09,202.13,201.99,7.97]
[1757084641177,5.23179369,202.17,202.03,7.97]
[1757084641478,5.23179369,202.17,202.04,83.36]
[1757084641673,8.09,202.16,202.02,137.48]
[1757084641872,4.956,202.14,202.02,137.48]
[1757084642477,4.956,202.14,202.03,13.46360963]
[1757084642677,4.956,202.14,202.0,5.49360963]
[1757084642876,4.956,202.12,202.0,5.49360963]
[1757084643085,10.44960963,202.12,201.99,7.97]
[1757084643380,4.956,202.12,201.99,7.97]
[1757084644271,10.44960963,202.12,201.99,7.97]
[1757084644469,4.956,202.1,201.99,7.97]
[1757084645473,13.046,202.08,201.94,7.97]
[1757084645779,13.046,202.04,201.94,7.97]
[1757084646480,8.09,202.04,201.94,7.97]
[1757084646781,13.58360963,202.15,202.0,7.97]
[1757084647378,8.09,202.15,202.03,7.97]
[1757084647782,4.956,202.14,202.03,7.97]
[1757084648776,4.956,202.14,202.04,5.49360963]
[1757084649082,4.956,202.14,202.03,7.97]
[1757084650077,8.09,202.13,201.99,5.49360963]
[1757084650382,13.046,202.1,201.98,7.97]
[1757084651787,8.09,202.08,201.94,318.84]
[1757084652582,13.046,202.08,201.94,318.84]
[1757084652787,5.49360963,202.06,201.94,318.84]
[1757084653294,5.49360963,202.03,201.88,4.13047908]
[1757084653481,8.09,201.99,201.88,4.13047908]
[1757084656588,8.09,202.06,201.88,4.13047908]
[1757084656784,8.09,202.06,201.89,13.46360963]
[1757084656985,5.49360963,202.05,201.9,4.4572]
[1757084657282,8.09,202.06,201.9,7.97]
[1757084657488,8.09,202.06,201.94,7.97]
[1757084658183,333.11536906,202.11,201.94,7.97]
[1757084658688,333.11536906,202.11,201.95,4.4561]
[1757084658880,327.62175943,202.11,201.94,7.8]
[1757084659084,7.92,202.11,201.98,7.8]
[1757084659384,7.92,202.11,201.98,13.29360963]
[1757084660786,7.92,202.08,201.92,7.8]
[1757084661088,7.92,202.08,201.92,56.0]
[1757084661588,7.92,202.04,201.92,7.8]
[1757084665084,7.92,202.11,201.92,7.8]
[1757084665389,7.92,202.11,201.93,7.8]
[1757084666390,7.92,202.11,201.95,7.8]
[1757084666985,7.92,202.11,201.96,4.456]
[1757084667188,7.92,202.11,201.95,7.8]
[1757084667790,7.92,202.06,201.89,7.8]
[1757084667991,7.92,202.11,201.93,7.8]
[1757084668390,7.92,202.11,201.97,7.8]
[1757084668692,16.84691748,202.11,201.92,8.92691748]
[1757084668892,7.92,202.1,201.93,7.8]
[1757084669390,7.92,202.1,201.93,12.2566]
[1757084669590,7.92,202.1,201.93,7.8]
[1757084669886,7.92,202.1,201.97,4.4558]
[1757084670091,7.92,202.1,201.98,7.8]
[1757084671793,7.92,202.1,201.98,12.2556]
[1757084671998,7.92,202.14,201.99,7.8]
[1757084672889,7.92,202.12,201.94,90.96]
[1757084673088,13.88291748,202.13,201.94,7.8]
[1757084673295,77.2036,202.06,201.94,7.8]
[1757084673990,4.4549,202.02,201.94,12.2565]
[1757084674388,69.2872,202.05,201.94,7.8]
[1757084674595,7.92,202.06,201.94,7.8]
[1757084674896,4.956,202.05,201.94,7.8]
[1757084675394,4.956,202.01,201.94,12.2564]
[1757084675600,4.956,202.01,201.94,7.8]
[1757084675788,69.2735,202.09,201.94,7.8]
[1757084675789,69.2735,202.09,201.95,7.8]
[1757084675992,7.92,202.11,201.95,7.8]
[1757084676303,7.92,202.11,201.99,7.8]
[1757084676597,4.4536,202.08,201.99,7.8]
[1757084676891,7.92,202.11,201.99,7.8]
[1757084677096,4.956,202.1,201.99,7.8]
[1757084677291,4.4526,202.12,202.03,4.4545]
[1757084677499,7.92,202.16,202.04,7.8]
[1757084677697,5.23179369,202.18,202.04,7.8]
[1757084677999,5.23179369,202.18,202.06,7.8]
[1757084678399,5.23179369,202.18,202.06,214.2628]
[1757084678597,5.23179369,202.18,202.07,7.8]
[1757084678793,5.23179369,202.18,202.1,7.8]
[1757084679001,5.23179369,202.18,202.14,7.8]
[1757084679198,7.69304794,202.23,202.16,7.8]
[1757084679397,7.69304794,202.23,202.17,8.92691748]
[1757084679992,7.69304794,202.23,202.18,7.8]
[1757084680193,7.69304794,202.23,202.17,8.92691748]
[1757084680600,10.3525857,202.32,202.22,7.8]
[1757084680803,10.3525857,202.32,202.26,8.92691748]
[1757084681101,10.3525857,202.32,202.28,7.8]
[1757084681299,10.3525857,202.32,202.29,137.22]
[1757084681500,8.01198474,202.33,202.29,137.22]
[1757084681797,8.01198474,202.33,202.31,7.8]
[1757084682001,8.01198474,202.33,202.3,8.92691748]
[1757084682303,10.3525857,202.42,202.32,7.8]
[1757084682904,10.3525857,202.42,202.33,144.10691748]
[1757084683798,10.3525857,202.42,202.32,7.8]
[1757084684004,10.3525857,202.42,202.33,113.48]
[1757084684306,10.3525857,202.42,202.32,7.8]
[1757084684501,10.3525857,202.42,202.33,137.14]
[1757084685207,10.3525857,202.42,202.32,144.92]
[1757084685503,7.92,202.41,202.32,7.8]
[1757084686006,7.92,202.41,202.31,137.12]
[1757084686508,69.1819,202.36,202.3,137.1]
[1757084686807,69.1819,202.36,202.28,7.8]
[1757084686999,69.1819,202.36,202.17,69.2452]
[1757084687000,69.1775,202.37,202.21,8.92691748]
[1757084687204,7.92,202.36,202.24,137.08]
[1757084687402,7.92,202.36,202.23,326.58]
[1757084687900,7.92,202.36,202.24,137.08]
[1757084688301,7.92,202.36,202.23,326.58]
[1757084688706,7.92,202.36,202.24,137.06]
[1757084689009,7.92,202.36,202.23,463.64]
[1757084689607,7.92,202.36,202.24,137.06]
[1757084689806,7.92,202.36,202.23,463.62]
[1757084690100,7.92,202.36,202.23,318.78]
[1757084690101,8.92691748,202.35,202.23,318.78]
[1757084690306,7.8,202.34,202.2,137.04]
[1757084691008,12.756,202.34,202.18,145.12]
[1757084691307,7.8,202.34,202.18,145.12]
[1757084691509,7.8,202.34,202.19,8.08]
[1757084691698,7.8,202.34,202.21,8.92691748]
[1757084691903,7.8,202.34,202.22,8.08]
[1757084693100,7.8,202.34,202.2,108.92]
[1757084693303,13.88291748,202.37,202.19,137.02]
[1757084693501,13.88291748,202.37,202.17,8.08]
[1757084693502,4.956,202.35,202.17,8.08]
[1757084693699,4.956,202.34,202.14,8.92691748]
[1757084693905,12.756,202.32,202.15,8.08]
[1757084694705,12.756,202.32,202.16,8.08]
[1757084695008,7.8,202.32,202.16,8.08]
[1757084695208,7.8,202.32,202.17,137.0]
[1757084695409,7.8,202.32,202.18,8.08]
[1757084695914,7.8,202.32,202.18,145.08]
[1757084696907,7.8,202.32,202.18,149.5311]
[1757084697213,7.8,202.32,202.19,8.08]
[1757084700008,16.72691748,202.31,202.14,12.5322]
[1757084700214,7.8,202.3,202.16,8.08]
[1757084700817,4.956,202.29,202.11,8.08]
[1757084701005,8.92691748,202.31,202.09,8.92691748]
[1757084701006,12.756,202.28,202.13,8.08]
[1757084701209,7.8,202.28,202.13,8.92691748]
[1757084701409,7.8,202.28,202.14,8.08]
[1757084702316,4.956,202.27,202.14,8.08]
[1757084702617,4.956,202.26,202.1,455.48]
[1757084702816,7.8,202.22,202.04,8.08]
[1757084703012,12.756,202.22,202.04,84.4]
[1757084703214,12.756,202.22,202.05,8.08]
[1757084703417,12.756,202.22,202.08,8.08]
[1757084703818,7.8,202.27,202.13,8.08]
[1757084704113,7.8,202.27,202.13,145.02]
[1757084704313,8.92691748,202.3,202.13,145.02]
[1757084704512,7.8,202.29,202.13,145.02]
[1757084704719,7.8,202.29,202.14,8.08]
[1757084704917,7.8,202.29,202.15,4.4519]
[1757084705214,8.92691748,202.28,202.14,8.08]
[1757084705516,7.8,202.27,202.14,8.08]
[1757084705716,4.956,202.26,202.14,8.08]
[1757084706615,4.956,202.26,202.1,23.92]
[1757084706822,12.756,202.25,202.1,23.92]
[1757084707019,4.956,202.23,202.09,8.08]
[1757084707215,4.956,202.21,202.09,8.08]
[1757084707413,4.956,202.17,202.04,8.08]
[1757084707915,7.8,202.18,202.04,8.08]
[1757084708115,4.956,202.17,202.04,8.08]
[1757084709314,4.956,202.17,202.04,12.5342]
[1757084709519,4.956,202.17,202.04,8.08]
[1757084710120,7.8,202.18,202.04,8.08]
[1757084713219,7.8,202.26,202.04,17.00691748]
[1757084713523,7.8,202.26,202.05,8.08]
[1757084713722,7.8,202.26,202.09,4.4531]
[1757084714022,12.756,202.26,202.1,8.08]
[1757084714216,7.8,202.26,202.1,8.08]
[1757084714824,7.8,202.26,202.13,8.08]
[1757084715326,7.8,202.35,202.14,8.08]
[1757084715527,7.8,202.35,202.17,8.08]
[1757084715725,7.8,202.35,202.21,8.08]
[1757084715925,12.756,202.35,202.21,8.08]
[1757084716420,7.8,202.35,202.21,8.08]
[1757084716727,7.8,202.35,202.21,12.5306]
[1757084718123,12.756,202.35,202.21,12.5306]
[1757084718329,7.8,202.35,202.21,8.08]
[1757084718529,7.8,202.35,202.21,103.02]
[1757084718929,12.756,202.35,202.21,103.02]
[1757084719130,7.8,202.35,202.21,8.08]
[1757084719524,7.8,202.35,202.21,17.00691748]
[1757084719929,7.8,202.35,202.24,7.67]
[1757084720221,327.58691748,202.45,202.24,7.67]
[1757084720428,7.81,202.44,202.25,4.4497]
[1757084720931,7.81,202.42,202.25,4.4497]
[1757084721424,7.81,202.42,202.28,7.67]
[1757084722029,7.81,202.42,202.23,70.98691748]
[1757084722231,7.81,202.42,202.24,7.67]
[1757084722627,7.81,202.42,202.25,82.54]
[1757084722827,7.81,202.41,202.25,82.54]
[1757084723230,7.81,202.41,202.24,7.67]
[1757084723522,7.81,202.38,202.24,7.67]
[1757084724126,7.81,202.38,202.25,3.81772913]
[1757084724831,5.47620154,202.39,202.25,3.81772913]
[1757084724832,7.81,202.35,202.25,3.81772913]
[1757084725227,13.28620154,202.35,202.25,3.81772913]
[1757084725420,7.81,202.35,202.25,3.81772913]
[1757084726231,10.43220154,202.41,202.25,3.81772913]
[1757084726430,7.81,202.4,202.26,13.14620154]
[1757084726930,7.81,202.4,202.25,3.81772913]
[1757084726931,7.81,202.4,202.29,5.47620154]
[1757084727129,326.47,202.45,202.32,5.47620154]
[1757084727331,7.81,202.45,202.32,5.47620154]
[1757084728136,7.81,202.45,202.32,9.92430154]
[1757084728329,7.81,202.45,202.32,5.47620154]
[1757084728526,7.81,202.45,202.33,7.67]
[1757084728936,7.81,202.45,202.33,3.81772913]
[1757084729238,7.81,202.45,202.33,11.48772913]
[1757084729633,7.81,202.44,202.33,3.81772913]
[1757084730637,7.81,202.44,202.34,5.47620154]
[1757084731543,7.81,202.44,202.33,3.81772913]
[1757084732443,7.81,202.44,202.33,9.29393067]
[1757084732642,7.81,202.44,202.33,3.81772913]
[1757084733343,7.81,202.44,202.32,7.67]
[1757084733946,7.81,202.43,202.27,69.70620154]
[1757084734341,7.81,202.43,202.31,5.47620154]
[1757084734542,7.81,202.43,202.32,7.67]
[1757084736044,5.47620154,202.46,202.27,7.67]
[1757084736245,7.81,202.45,202.3,5.47620154]
[1757084736445,7.81,202.45,202.34,5.47620154]
[1757084736640,7.81,202.45,202.34,13.14620154]
[1757084737148,7.81,202.45,202.34,7.67]
[1757084738746,7.81,202.45,202.31,5.47620154]
[1757084739553,7.81,202.45,202.32,7.67]
[1757084739750,7.81,202.44,202.25,7.67]
[1757084740053,7.81,202.41,202.25,7.67]
[1757084740249,7.81,202.38,202.25,7.67]
[1757084740552,12.766,202.34,202.23,4.13047908]
[1757084740755,7.81,202.34,202.24,7.67]
[1757084741352,7.81,202.42,202.25,5.47620154]
[1757084741553,13.28620154,202.42,202.25,5.47620154]
[1757084742148,4.956,202.41,202.25,5.47620154]
[1757084742448,12.766,202.4,202.25,5.47620154]
[1757084743143,7.81,202.4,202.25,5.47620154]
[1757084743348,7.81,202.4,202.3,7.67]
[1757084743950,12.766,202.4,202.25,13.14620154]
[1757084744655,4.956,202.4,202.25,13.14620154]
[1757084744858,18.24220154,202.39,202.25,7.67]
[1757084745252,18.24220154,202.39,202.2,7.67]
[1757084745253,12.766,202.39,202.2,7.67]
[1757084745449,18.24220154,202.39,202.22,5.47620154]
[1757084745855,18.24220154,202.39,202.23,7.67]
[1757084746055,12.766,202.39,202.23,7.67]
[1757084746256,12.766,202.39,202.25,5.47620154]
[1757084746659,18.24220154,202.39,202.23,7.67]
[1757084747461,18.24220154,202.39,202.24,4.45]
[1757084747655,18.24220154,202.39,202.23,7.67]
[1757084748062,12.766,202.39,202.24,4.4498]
[1757084748359,12.766,202.39,202.23,7.67]
[1757084748957,12.766,202.39,202.26,5.47620154]
[1757084749163,12.766,202.39,202.27,7.79]
[1757084750262,7.81,202.39,202.27,7.79]
[1757084750667,7.81,202.39,202.29,5.47620154]
[1757084750963,7.54,202.46,202.33,7.79]
[1757084751157,7.54,202.46,202.33,12.2378]
[1757084751358,7.54,202.46,202.36,5.47620154]
[1757084751560,4.956,202.49,202.37,7.79]
[1757084751961,7.54,202.5,202.37,7.79]
[1757084752863,7.54,202.5,202.39,5.47620154]
[1757084753063,7.54,202.5,202.37,7.79]
[1757084753265,7.54,202.5,202.38,5.47620154]
[1757084754169,7.54,202.5,202.39,4.4466]
[1757084754569,7.54,202.5,202.4,7.79]
[1757084754972,7.54,202.5,202.4,12.2363]
[1757084755161,7.54,202.54,202.41,5.47620154]
[1757084756974,7.54,202.54,202.42,7.79]
[1757084760076,13.01620154,202.54,202.42,7.79]
[1757084760276,7.54,202.53,202.37,13.26620154]
[1757084760470,7.54,202.52,202.37,7.79]
[1757084761272,5.47620154,202.54,202.37,12.2369]
[1757084761673,7.54,202.53,202.43,3.83483837]
[1757084762076,7.54,202.5,202.43,3.83483837]
[1757084762579,13.01620154,202.5,202.43,3.83483837]
[1757084762781,7.54,202.5,202.43,3.83483837]
[1757084765279,4.956,202.49,202.43,3.83483837]
[1757084765678,4.956,202.51,202.43,3.83483837]
[1757084766678,4.956,202.52,202.43,3.83483837]
[1757084767379,4.956,202.52,202.4,7.79]
[1757084767976,7.54,202.53,202.42,7.79]
[1757084768178,7.54,202.53,202.42,12.2357]
[1757084768375,12.496,202.53,202.42,12.2357]
[1757084768577,7.54,202.53,202.42,7.79]
[1757084769077,4.956,202.52,202.42,7.79]
[1757084769878,7.54,202.53,202.42,7.79]
[1757084770084,7.54,202.53,202.42,13.26620154]
[1757084770984,7.54,202.53,202.42,7.79]
[1757084771384,4.956,202.52,202.42,7.79]
[1757084772485,4.956,202.48,202.38,7.79]
[1757084772684,4.956,202.44,202.37,4.13047908]
[1757084773279,4.956,202.42,202.37,4.13047908]
[1757084773482,12.496,202.4,202.39,4.13047908]
[1757084774480,4.956,202.38,202.36,5.46944293]
[1757084774683,12.496,202.37,202.36,5.46944293]
[1757084774884,7.54,202.37,202.36,5.46944293]
[1757084775183,5.47620154,202.43,202.36,5.46944293]
[1757084775489,4.956,202.42,202.36,5.46944293]
[1757084775682,5.47620154,202.4,202.36,5.46944293]
[1757084776088,0.5,202.39,202.36,5.46944293]
[1757084776288,5.47620154,202.37,202.32,8.2005258]
[1757084776693,4.956,202.35,202.32,8.2005258]
[1757084776991,5.47620154,202.37,202.32,8.2005258]
[1757084777389,7.54,202.36,202.32,8.2005258]
[1757084777587,5.47620154,202.37,202.32,8.2005258]
[1757084777793,7.54,202.36,202.32,8.2005258]
[1757084778088,7.76,202.36,202.32,8.2005258]
[1757084778394,5.47620154,202.34,202.32,8.2005258]
[1757084778593,5.47620154,202.34,202.24,7.79]
[1757084778793,12.716,202.36,202.24,7.79]
[1757084779294,7.76,202.36,202.24,7.79]
[1757084779597,5.47620154,202.4,202.26,7.95]
[1757084779796,7.76,202.41,202.3,7.95]
[1757084781296,7.76,202.46,202.33,7.95]
[1757084781999,10.43220154,202.44,202.33,7.95]
[1757084782293,4.956,202.44,202.33,7.95]
[1757084782597,7.76,202.46,202.33,7.95]
[1757084782895,12.716,202.46,202.33,7.95]
[1757084783196,7.76,202.44,202.33,7.95]
[1757084784100,4.956,202.43,202.33,7.95]
[1757084784600,4.956,202.42,202.28,7.95]
[1757084784794,10.43220154,202.42,202.28,7.95]
[1757084784999,4.956,202.4,202.28,7.95]
[1757084785796,4.956,202.45,202.28,16.84484623]
[1757084786099,4.956,202.45,202.29,7.95]
[1757084789303,4.956,202.45,202.33,7.95]
[1757084789597,1384.30912292,202.57,202.35,7.95]
[1757084789598,12.716,202.51,202.35,7.95]
[1757084789803,12.716,202.51,202.37,7.95]
[1757084789804,7.76,202.51,202.37,7.95]
[1757084789996,13.05912292,202.57,202.4,8.89484623]
[1757084790199,13.05912292,202.57,202.41,7.95]
[1757084790797,7.76,202.57,202.41,7.95]
[1757084791303,7.76,202.61,202.45,7.95]
[1757084791503,7.76,202.61,202.48,8.89484623]
[1757084791806,5.29912292,202.64,202.49,7.95]
[1757084795005,7.76,202.63,202.49,7.95]
[1757084795205,7.76,202.63,202.49,70.93]
[1757084795507,7.76,202.63,202.5,7.95]
[1757084795807,5.29912292,202.64,202.5,7.95]
[1757084797216,7.76,202.63,202.5,128.55]
[1757084797510,7.76,202.63,202.51,7.95]
[1757084798711,8.6194078,202.67,202.51,7.95]
[1757084799012,8.6194078,202.67,202.53,7.95]
[1757084799813,7.76,202.67,202.53,7.95]
[1757084800514,8.61920622,202.71,202.53,7.95]
[1757084801715,8.61920622,202.71,202.56,8.89484623]
[1757084801908,7.76,202.71,202.57,7.95]
[1757084802110,7.76,202.75,202.61,7.95]
[1757084803007,6.15796866,202.8,202.61,7.95]
[1757084803815,7.76,202.79,202.63,7.95]
[1757084804011,7.76,202.79,202.65,7.95]
[1757084804814,0.85884574,202.8,202.65,7.95]
[1757084805215,7.76,202.83,202.67,7.95]
[1757084805406,7.76,202.84,202.68,14.74]
[1757084805913,4.941,202.83,202.67,7.95]
[1757084806110,7.76,202.82,202.67,7.95]
[1757084806316,0.85861265,202.85,202.67,24.81]
[1757084807015,4.941,202.81,202.67,24.81]
[1757084807514,4.941,202.81,202.67,7.95]
[1757084809115,12.701,202.82,202.67,7.95]
[1757084809510,7.76,202.82,202.69,7.86]
[1757084810216,4.941,202.81,202.69,7.86]
[1757084810717,4.941,202.79,202.69,7.86]
[1757084810913,4.941,202.77,202.65,24.62]
[1757084811116,7.4,202.78,202.65,7.86]
[1757084813522,4.941,202.77,202.65,7.86]
[1757084813820,7.4,202.78,202.65,7.86]
[1757084814612,4.941,202.77,202.65,7.86]
[1757084814923,4.941,202.76,202.65,7.86]
[1757084815118,4.941,202.74,202.6,7.86]
[1757084815314,4.941,202.72,202.6,7.86]
[1757084815723,7.4,202.73,202.6,7.86]
[1757084817316,7.4,202.73,202.61,8.89484623]
[1757084817514,7.4,202.73,202.62,7.86]
[1757084819218,7.4,202.8,202.62,7.86]
[1757084819522,7.4,202.8,202.63,7.86]
[1757084820119,4.941,202.81,202.63,7.86]
[1757084820321,7.4,202.8,202.63,7.86]
[1757084820526,34.09484623,202.86,202.63,7.86]
[1757084820527,7.4,202.81,202.63,7.86]
[1757084821116,4.941,202.8,202.63,7.86]
[1757084821325,7.4,202.81,202.66,7.86]
[1757084822222,4.941,202.8,202.66,7.86]
[1757084822427,4.941,202.78,202.66,7.86]
[1757084822723,4.941,202.75,202.6,48.46]
[1757084822927,7.4,202.72,202.6,7.86]
[1757084823629,7.4,202.72,202.54,12.3031]
[1757084823928,7.4,202.72,202.55,7.86]
[1757084824226,4.941,202.69,202.55,7.86]
[1757084824426,12.341,202.68,202.55,7.86]
[1757084825230,7.4,202.68,202.55,7.86]
[1757084825631,12.341,202.68,202.55,7.86]
[1757084826231,7.4,202.68,202.55,7.86]
[1757084826625,7.4,202.68,202.56,7.86]
[1757084826931,0.85861265,202.85,202.56,7.86]
[1757084826932,7.4,202.72,202.6,7.86]
[1757084827126,42.94,202.81,202.64,7.86]
[1757084827127,7.4,202.8,202.64,7.86]
[1757084827530,4.941,202.79,202.64,7.86]
[1757084827727,4.941,202.78,202.64,7.86]
[1757084827927,7.4,202.79,202.66,7.86]
[1757084829830,7.4,202.84,202.67,7.86]
[1757084830832,12.341,202.82,202.67,7.86]
[1757084831433,7.4,202.82,202.67,7.86]
[1757084831928,4.941,202.81,202.67,7.86]
[1757084832132,4.941,202.79,202.67,7.86]
[1757084833235,7.4,202.8,202.67,7.86]
[1757084833435,4.941,202.79,202.67,7.86]
[1757084833636,7.4,202.8,202.67,7.86]
[1757084834336,7.4,202.8,202.62,7.86]
[1757084834538,4.941,202.79,202.62,7.86]
[1757084834736,8.89484623,202.82,202.62,7.86]
[1757084834737,4.941,202.77,202.62,7.86]
[1757084835139,7.4,202.78,202.62,7.86]
[1757084835442,7.4,202.78,202.64,7.86]
[1757084835640,12.341,202.78,202.64,7.86]
[1757084836836,7.4,202.78,202.65,7.86]
[1757084838242,4.941,202.83,202.65,7.86]
[1757084838540,4.941,202.83,202.67,8.89484623]
[1757084838742,4.941,202.83,202.68,7.87]
[1757084840137,4.941,202.83,202.69,7.87]
[1757084840342,4.941,202.83,202.71,16.76484623]
[1757084840546,4.941,202.83,202.72,7.87]
[1757084840739,4.941,202.81,202.72,7.87]
[1757084842442,318.95848556,202.89,202.73,8.89484623]
[1757084842443,7.78,202.86,202.73,8.89484623]
[1757084842743,7.78,202.86,202.74,7.87]
[1757084842941,7.78,202.86,202.74,142.89]
[1757084843140,7.78,202.86,202.75,7.87]
[1757084843537,4.941,202.85,202.75,7.87]
[1757084844438,4.941,202.83,202.75,7.87]
[1757084844641,7.78,202.82,202.7,52.09]
[1757084844840,4.941,202.81,202.7,52.09]
[1757084845647,4.941,202.81,202.71,7.87]
[1757084845946,0.8583691,202.91,202.7,49.67037696]
[1757084845947,12.721,202.86,202.75,7.87]
[1757084848246,4.941,202.82,202.73,4.13075157]
[1757084848643,4.941,202.82,202.74,7.87]
[1757084848852,4.941,202.82,202.74,13.32037696]
[1757084849455,4.941,202.86,202.74,13.32037696]
[1757084849755,4.941,202.86,202.75,7.87]